[Event "*** SCC Grand Prix: Titled Tuesday Blitz"]
[Site "Chess.com"]
[Date "2020.10.13"]
[Round "6"]
[White "canary2016"]
[Black "pavelalexandru07"]
[Result "0-1"]
[WhiteElo "1960"]
[BlackElo "2246"]
[TimeControl "180+1"]
[EndTime "11:07:15 PDT"]
[Termination "pavelalexandru07 won on time"]

1. d4 {[%clk 0:03:00.9]} 1... Nf6 {[%clk 0:02:59.6]} 2. Bf4 {[%clk 0:02:59]}
2... d5 {[%clk 0:02:54.2]} 3. e3 {[%clk 0:02:58.4]} 3... e6 {[%clk 0:02:54.6]}
4. Nf3 {[%clk 0:02:57.3]} 4... Bd6 {[%clk 0:02:54.3]} 5. Bg3 {[%clk 0:02:56.9]}
5... a6 {[%clk 0:02:49.9]} 6. Bd3 {[%clk 0:02:56.2]} 6... Ne4 {[%clk 0:02:44.3]}
7. Be5 {[%clk 0:02:50.5]} 7... f6 {[%clk 0:02:42.1]} 8. Bg3 {[%clk 0:02:37.6]}
8... Nd7 {[%clk 0:02:34.3]} 9. Nbd2 {[%clk 0:02:32.8]} 9... f5 {[%clk
0:02:30.5]} 10. Be5 {[%clk 0:02:22.3]} 10... Nxe5 {[%clk 0:02:23.4]} 11. Nxe5
{[%clk 0:02:19.9]} 11... Bxe5 {[%clk 0:02:23.7]} 12. dxe5 {[%clk 0:02:14]} 12...
O-O {[%clk 0:02:17.6]} 13. Nxe4 {[%clk 0:01:18.7]} 13... fxe4 {[%clk 0:02:14.9]}
14. Be2 {[%clk 0:01:17.4]} 14... Qg5 {[%clk 0:02:14.4]} 15. O-O {[%clk
0:01:09.8]} 15... Qxe5 {[%clk 0:02:13.8]} 16. c3 {[%clk 0:01:09.9]} 16... c6
{[%clk 0:02:04.9]} 17. Qb3 {[%clk 0:01:01.2]} 17... Qc7 {[%clk 0:01:57.5]} 18.
c4 {[%clk 0:00:58.4]} 18... b5 {[%clk 0:01:45.4]} 19. cxd5 {[%clk 0:00:48.9]}
19... exd5 {[%clk 0:01:44.3]} 20. Rac1 {[%clk 0:00:48.8]} 20... Be6 {[%clk
0:01:36.2]} 21. Rc5 {[%clk 0:00:45.7]} 21... Qd6 {[%clk 0:01:24.4]} 22. Qc2
{[%clk 0:00:38.3]} 22... Bd7 {[%clk 0:01:21.9]} 23. Rd1 {[%clk 0:00:31.1]} 23...
Rae8 {[%clk 0:01:20.6]} 24. Rc3 {[%clk 0:00:25.9]} 24... Rf6 {[%clk 0:01:17.1]}
25. a4 {[%clk 0:00:25.3]} 25... Rh6 {[%clk 0:01:13.8]} 26. g3 {[%clk 0:00:22.8]}
26... Rf6 {[%clk 0:01:09.2]} 27. Bf1 {[%clk 0:00:22.2]} 27... Qe5 {[%clk
0:01:01.9]} 28. axb5 {[%clk 0:00:19.9]} 28... axb5 {[%clk 0:01:01.2]} 29. Ra3
{[%clk 0:00:18.6]} 29... Ref8 {[%clk 0:01:00.4]} 30. Rd2 {[%clk 0:00:17]} 30...
h5 {[%clk 0:00:41.6]} 31. Ra7 {[%clk 0:00:16]} 31... Bg4 {[%clk 0:00:38.3]} 32.
h3 {[%clk 0:00:14.9]} 32... Bf3 {[%clk 0:00:37.3]} 33. Bg2 {[%clk 0:00:13]}
33... h4 {[%clk 0:00:34.3]} 34. g4 {[%clk 0:00:09.9]} 34... Bxg2 {[%clk
0:00:26.3]} 35. Kxg2 {[%clk 0:00:09.8]} 35... Re6 {[%clk 0:00:24.3]} 36. Ra6
{[%clk 0:00:05]} 36... Qf6 {[%clk 0:00:24.3]} 37. Kg1 {[%clk 0:00:03]} 37... Qf3
{[%clk 0:00:11.5]} 38. Rxc6 {[%clk 0:00:02.8]} 38... Qxh3 {[%clk 0:00:11.2]} 39.
Rxe6 {[%clk 0:00:01.8]} 39... Qxg4+ {[%clk 0:00:11.6]} 0-1

[Event "*** SCC Grand Prix: Titled Tuesday Blitz"]
[Site "Chess.com"]
[Date "2020.10.13"]
[Round "6"]
[White "doons21"]
[Black "mfwagnerpeixoto"]
[Result "1-0"]
[WhiteElo "2573"]
[BlackElo "2262"]
[TimeControl "180+1"]
[EndTime "11:07:16 PDT"]
[Termination "doons21 won on time"]

1. e4 {[%clk 0:03:00.9]} 1... c5 {[%clk 0:02:59.3]} 2. c3 {[%clk 0:03:00.7]}
2... e6 {[%clk 0:02:57.2]} 3. d4 {[%clk 0:03:00.7]} 3... d5 {[%clk 0:02:57.5]}
4. exd5 {[%clk 0:03:01.1]} 4... exd5 {[%clk 0:02:55.4]} 5. Nf3 {[%clk
0:03:01.6]} 5... Nc6 {[%clk 0:02:51.9]} 6. Be3 {[%clk 0:03:01.7]} 6... c4 {[%clk
0:02:51.9]} 7. g3 {[%clk 0:03:01.8]} 7... Nf6 {[%clk 0:02:50.6]} 8. Bg2 {[%clk
0:03:02.1]} 8... Bd6 {[%clk 0:02:50]} 9. O-O {[%clk 0:03:02.3]} 9... O-O {[%clk
0:02:50]} 10. h3 {[%clk 0:02:59.9]} 10... b5 {[%clk 0:02:49.4]} 11. Re1 {[%clk
0:02:59.3]} 11... Bd7 {[%clk 0:02:49.3]} 12. Qc1 {[%clk 0:02:46.3]} 12... Ne4
{[%clk 0:02:39.4]} 13. Bf4 {[%clk 0:02:44.6]} 13... Qc7 {[%clk 0:02:31.9]} 14.
Bxd6 {[%clk 0:02:42.1]} 14... Qxd6 {[%clk 0:02:32.8]} 15. Nbd2 {[%clk
0:02:37.4]} 15... f5 {[%clk 0:02:32.3]} 16. Nf1 {[%clk 0:02:14.4]} 16... f4
{[%clk 0:02:20.2]} 17. g4 {[%clk 0:02:03.6]} 17... Rae8 {[%clk 0:02:19.3]} 18.
N3d2 {[%clk 0:02:01.6]} 18... Ng5 {[%clk 0:02:01.1]} 19. Nh2 {[%clk 0:01:59.3]}
19... Rxe1+ {[%clk 0:01:53.9]} 20. Qxe1 {[%clk 0:01:58.6]} 20... h5 {[%clk
0:01:33]} 21. Qf1 {[%clk 0:01:34.1]} 21... hxg4 {[%clk 0:01:25.2]} 22. hxg4
{[%clk 0:01:34]} 22... Ne7 {[%clk 0:01:11.2]} 23. Re1 {[%clk 0:01:28.5]} 23...
Ng6 {[%clk 0:01:09]} 24. Nhf3 {[%clk 0:01:18.3]} 24... Nxf3+ {[%clk 0:01:04.1]}
25. Bxf3 {[%clk 0:01:15.4]} 25... Nh4 {[%clk 0:00:59]} 26. Qh3 {[%clk 0:01:08]}
26... Nxf3+ {[%clk 0:00:34.9]} 27. Nxf3 {[%clk 0:01:08.9]} 27... Re8 {[%clk
0:00:27.7]} 28. Ne5 {[%clk 0:01:03.2]} 28... Qf6 {[%clk 0:00:15.3]} 29. Kg2
{[%clk 0:01:01.7]} 29... Be6 {[%clk 0:00:14.1]} 30. Rh1 {[%clk 0:01:01.4]} 30...
Kf8 {[%clk 0:00:10.7]} 31. Qh4 {[%clk 0:00:40.4]} 31... Qxh4 {[%clk 0:00:09.4]}
32. Rxh4 {[%clk 0:00:41.3]} 32... Ke7 {[%clk 0:00:09.6]} 33. g5 {[%clk
0:00:36.5]} 33... Kd6 {[%clk 0:00:08.6]} 34. Rxf4 {[%clk 0:00:36.1]} 34... a5
{[%clk 0:00:08.5]} 35. Rh4 {[%clk 0:00:28.3]} 35... b4 {[%clk 0:00:08.6]} 36.
Rh7 {[%clk 0:00:22.9]} 36... bxc3 {[%clk 0:00:06.5]} 37. bxc3 {[%clk 0:00:23.8]}
37... Re7 {[%clk 0:00:05.5]} 38. g6 {[%clk 0:00:16.3]} 38... Bf5 {[%clk
0:00:03.9]} 39. Kg3 {[%clk 0:00:15.5]} 39... Rb7 {[%clk 0:00:02.2]} 40. Rh8
{[%clk 0:00:15]} 1-0

[Event "*** SCC Grand Prix: Titled Tuesday Blitz"]
[Site "Chess.com"]
[Date "2020.10.13"]
[Round "6"]
[White "tsvet2005"]
[Black "GigaQuparadze"]
[Result "1-0"]
[WhiteElo "2717"]
[BlackElo "2944"]
[TimeControl "180+1"]
[EndTime "11:07:18 PDT"]
[Termination "tsvet2005 won by resignation"]

1. d4 {[%clk 0:03:00.9]} 1... Nf6 {[%clk 0:02:59.3]} 2. c4 {[%clk 0:03:00.7]}
2... e6 {[%clk 0:02:59.4]} 3. Nc3 {[%clk 0:02:59.8]} 3... Bb4 {[%clk 0:02:59.3]}
4. f3 {[%clk 0:02:59]} 4... d5 {[%clk 0:02:56.5]} 5. a3 {[%clk 0:02:58.7]} 5...
Bxc3+ {[%clk 0:02:56.5]} 6. bxc3 {[%clk 0:02:59.6]} 6... c5 {[%clk 0:02:57]} 7.
cxd5 {[%clk 0:03:00.2]} 7... exd5 {[%clk 0:02:55.9]} 8. e3 {[%clk 0:03:00.3]}
8... O-O {[%clk 0:02:55.6]} 9. Bd3 {[%clk 0:03:00.4]} 9... b6 {[%clk 0:02:54.5]}
10. Ne2 {[%clk 0:03:00.9]} 10... Ba6 {[%clk 0:02:54.5]} 11. O-O {[%clk
0:03:01.5]} 11... Bxd3 {[%clk 0:02:53.8]} 12. Qxd3 {[%clk 0:03:02.4]} 12... Re8
{[%clk 0:02:53]} 13. Ng3 {[%clk 0:03:02.8]} 13... Nc6 {[%clk 0:02:53.1]} 14. Bb2
{[%clk 0:03:03.1]} 14... h5 {[%clk 0:02:51]} 15. Rad1 {[%clk 0:03:01.9]} 15...
h4 {[%clk 0:02:47.8]} 16. Nh1 {[%clk 0:03:01.7]} 16... Qe7 {[%clk 0:02:43.6]}
17. Rfe1 {[%clk 0:02:55.5]} 17... Rad8 {[%clk 0:02:10]} 18. Nf2 {[%clk
0:02:54.7]} 18... g6 {[%clk 0:02:08]} 19. e4 {[%clk 0:02:47.8]} 19... dxe4
{[%clk 0:02:07.3]} 20. fxe4 {[%clk 0:02:48.7]} 20... Nh5 {[%clk 0:02:01.3]} 21.
Qf3 {[%clk 0:02:40.1]} 21... Qf6 {[%clk 0:01:52.9]} 22. Qxf6 {[%clk 0:02:11]}
22... Nxf6 {[%clk 0:01:53.8]} 23. e5 {[%clk 0:02:11.9]} 23... Nh5 {[%clk
0:01:53.3]} 24. Ng4 {[%clk 0:02:07.1]} 24... cxd4 {[%clk 0:01:46.8]} 25. cxd4
{[%clk 0:02:08]} 25... Ne7 {[%clk 0:01:46.7]} 26. Rf1 {[%clk 0:01:53.8]} 26...
Kg7 {[%clk 0:01:20.3]} 27. Nf6 {[%clk 0:01:38.2]} 27... Nd5 {[%clk 0:01:05.5]}
28. Nxe8+ {[%clk 0:01:33.6]} 28... Rxe8 {[%clk 0:01:04.5]} 29. Rc1 {[%clk
0:01:33.1]} 29... Nhf4 {[%clk 0:01:03.5]} 30. Rxf4 {[%clk 0:01:03.9]} 30... Nxf4
{[%clk 0:01:02.4]} 31. Rc7 {[%clk 0:01:04.8]} 31... Kg8 {[%clk 0:00:46.5]} 32.
g3 {[%clk 0:00:52.5]} 32... hxg3 {[%clk 0:00:42.8]} 33. hxg3 {[%clk 0:00:53.4]}
33... Nd5 {[%clk 0:00:39.9]} 34. Rd7 {[%clk 0:00:53]} 34... Ne3 {[%clk
0:00:40.1]} 35. Bc1 {[%clk 0:00:47.9]} 35... Nf5 {[%clk 0:00:29.6]} 36. g4
{[%clk 0:00:47.7]} 36... Ng7 {[%clk 0:00:29.5]} 37. Bg5 {[%clk 0:00:45.7]} 37...
Ne6 {[%clk 0:00:29]} 38. Bf6 {[%clk 0:00:45.6]} 38... Rc8 {[%clk 0:00:28.5]} 39.
d5 {[%clk 0:00:44.4]} 39... Nf4 {[%clk 0:00:28.7]} 40. Kf2 {[%clk 0:00:40.5]}
40... Kf8 {[%clk 0:00:26.5]} 41. Kf3 {[%clk 0:00:38.7]} 41... g5 {[%clk
0:00:25.4]} 42. Bxg5 {[%clk 0:00:35.7]} 42... Ng6 {[%clk 0:00:25.7]} 43. Bf6
{[%clk 0:00:35.8]} 43... a5 {[%clk 0:00:21.7]} 44. Rb7 {[%clk 0:00:35.7]} 44...
Ke8 {[%clk 0:00:17.8]} 45. d6 {[%clk 0:00:34.4]} 45... Rc3+ {[%clk 0:00:09.5]}
46. Ke4 {[%clk 0:00:33.9]} 46... Rc4+ {[%clk 0:00:09.9]} 47. Kd3 {[%clk
0:00:30.4]} 1-0

[Event "*** SCC Grand Prix: Titled Tuesday Blitz"]
[Site "Chess.com"]
[Date "2020.10.13"]
[Round "6"]
[White "Mikhail_Golubev"]
[Black "Unknown_IM"]
[Result "0-1"]
[WhiteElo "2522"]
[BlackElo "2376"]
[TimeControl "180+1"]
[EndTime "11:07:21 PDT"]
[Termination "Unknown_IM won on time"]

1. e4 {[%clk 0:03:00.9]} 1... d6 {[%clk 0:02:53.9]} 2. d4 {[%clk 0:03:00]} 2...
Nf6 {[%clk 0:02:50.8]} 3. Nc3 {[%clk 0:02:59.3]} 3... e5 {[%clk 0:02:46.9]} 4.
Nf3 {[%clk 0:02:58.4]} 4... Nbd7 {[%clk 0:02:44.5]} 5. Bc4 {[%clk 0:02:55.9]}
5... Be7 {[%clk 0:02:41.4]} 6. a4 {[%clk 0:02:54.7]} 6... O-O {[%clk 0:02:37.8]}
7. O-O {[%clk 0:02:54.4]} 7... c6 {[%clk 0:02:33.5]} 8. Re1 {[%clk 0:02:53.6]}
8... exd4 {[%clk 0:02:26.2]} 9. Nxd4 {[%clk 0:02:52.3]} 9... Ne5 {[%clk
0:02:24]} 10. Bb3 {[%clk 0:02:37.7]} 10... Qc7 {[%clk 0:02:19.2]} 11. Bf4 {[%clk
0:02:35.2]} 11... Ng6 {[%clk 0:02:16.7]} 12. Bg3 {[%clk 0:02:33.3]} 12... Bd7
{[%clk 0:01:51.9]} 13. h3 {[%clk 0:02:15.3]} 13... Rfe8 {[%clk 0:01:44]} 14. Qd2
{[%clk 0:02:12.2]} 14... Bf8 {[%clk 0:01:42]} 15. Rad1 {[%clk 0:02:10.3]} 15...
Rad8 {[%clk 0:01:34.2]} 16. Bh2 {[%clk 0:01:49.3]} 16... Qb6 {[%clk 0:00:48.3]}
17. Kh1 {[%clk 0:01:39.7]} 17... Bc8 {[%clk 0:00:16.9]} 18. f4 {[%clk
0:01:36.4]} 18... d5 {[%clk 0:00:08.9]} 19. e5 {[%clk 0:01:25.6]} 19... Ne4
{[%clk 0:00:08.5]} 20. Nxe4 {[%clk 0:00:55.1]} 20... dxe4 {[%clk 0:00:07.9]} 21.
Qf2 {[%clk 0:00:41.3]} 21... Bc5 {[%clk 0:00:05.1]} 22. Bg1 {[%clk 0:00:27.9]}
22... Ne7 {[%clk 0:00:04.3]} 23. a5 {[%clk 0:00:11.8]} 23... Qxa5 {[%clk
0:00:04.2]} 24. Rxe4 {[%clk 0:00:11.4]} 24... Nf5 {[%clk 0:00:04.1]} 25. c3
{[%clk 0:00:07.9]} 25... Qb6 {[%clk 0:00:04.2]} 26. Ba2 {[%clk 0:00:07.7]} 26...
Nxd4 {[%clk 0:00:02.3]} 27. cxd4 {[%clk 0:00:07.3]} 27... Bf8 {[%clk 0:00:01.6]}
28. Ree1 {[%clk 0:00:06.6]} 28... Bf5 {[%clk 0:00:02.1]} 29. Qe2 {[%clk
0:00:06.1]} 29... Be6 {[%clk 0:00:02.2]} 30. d5 {[%clk 0:00:05.9]} 30... Bxd5
{[%clk 0:00:02.3]} 31. Bxb6 {[%clk 0:00:01.9]} 31... axb6 {[%clk 0:00:02.1]} 32.
Bxd5 {[%clk 0:00:02.6]} 32... cxd5 {[%clk 0:00:03]} 33. Rb1 {[%clk 0:00:02.3]}
33... Bc5 {[%clk 0:00:02.9]} 34. Red1 {[%clk 0:00:03]} 34... d4 {[%clk
0:00:03.8]} 35. g3 {[%clk 0:00:03]} 35... Bb4 {[%clk 0:00:02.7]} 0-1

[Event "*** SCC Grand Prix: Titled Tuesday Blitz"]
[Site "Chess.com"]
[Date "2020.10.13"]
[Round "6"]
[White "banane_verte"]
[Black "JosefineHeinemann"]
[Result "0-1"]
[WhiteElo "2436"]
[BlackElo "2620"]
[TimeControl "180+1"]
[EndTime "11:07:23 PDT"]
[Termination "JosefineHeinemann won by resignation"]

1. e4 {[%clk 0:03:00.9]} 1... c5 {[%clk 0:02:55.6]} 2. Nc3 {[%clk 0:03:01]} 2...
Nc6 {[%clk 0:02:48.5]} 3. Bb5 {[%clk 0:02:59.9]} 3... Nd4 {[%clk 0:02:48.3]} 4.
Nf3 {[%clk 0:02:59.6]} 4... Nxb5 {[%clk 0:02:47.3]} 5. Nxb5 {[%clk 0:03:00.5]}
5... d5 {[%clk 0:02:47.6]} 6. exd5 {[%clk 0:02:58.6]} 6... a6 {[%clk 0:02:48.2]}
7. Nc3 {[%clk 0:02:57.9]} 7... Nf6 {[%clk 0:02:46.8]} 8. h3 {[%clk 0:02:35.4]}
8... Nxd5 {[%clk 0:02:46]} 9. Nxd5 {[%clk 0:02:36.3]} 9... Qxd5 {[%clk
0:02:45.9]} 10. d4 {[%clk 0:02:37.2]} 10... cxd4 {[%clk 0:02:45.9]} 11. Qxd4
{[%clk 0:02:37.7]} 11... Qxd4 {[%clk 0:02:45.9]} 12. Nxd4 {[%clk 0:02:38.6]}
12... e5 {[%clk 0:02:45.7]} 13. Nf3 {[%clk 0:02:37.9]} 13... f6 {[%clk
0:02:45.4]} 14. Be3 {[%clk 0:02:35.6]} 14... Be6 {[%clk 0:02:44.7]} 15. O-O
{[%clk 0:02:32.2]} 15... Be7 {[%clk 0:02:42.4]} 16. Nd2 {[%clk 0:02:29.9]} 16...
Kf7 {[%clk 0:02:42.3]} 17. Ne4 {[%clk 0:02:28.3]} 17... Rac8 {[%clk 0:02:42.3]}
18. c3 {[%clk 0:02:26.3]} 18... h6 {[%clk 0:02:42.4]} 19. f4 {[%clk 0:02:16.9]}
19... exf4 {[%clk 0:02:42]} 20. Bxf4 {[%clk 0:02:15.8]} 20... Rhd8 {[%clk
0:02:39.1]} 21. Rfd1 {[%clk 0:02:08]} 21... Bd5 {[%clk 0:02:20.8]} 22. Ng3
{[%clk 0:01:33.9]} 22... Bc5+ {[%clk 0:02:19.4]} 23. Kh2 {[%clk 0:01:33]} 23...
Bc6 {[%clk 0:02:19.6]} 24. Nf5 {[%clk 0:01:29]} 24... g5 {[%clk 0:01:53.7]} 25.
Bd6 {[%clk 0:01:16.6]} 25... Ke6 {[%clk 0:01:41.6]} 26. Bxc5 {[%clk 0:00:44.6]}
26... Kxf5 {[%clk 0:01:41.3]} 27. Be7 {[%clk 0:00:44.3]} 27... Rxd1 {[%clk
0:01:40.2]} 28. Rxd1 {[%clk 0:00:44.1]} 28... Ke6 {[%clk 0:01:36.7]} 29. Re1+
{[%clk 0:00:42.6]} 29... Kf7 {[%clk 0:01:36.6]} 30. Bb4 {[%clk 0:00:40.4]} 30...
Rd8 {[%clk 0:01:22.1]} 31. Re7+ {[%clk 0:00:37.5]} 31... Kg6 {[%clk 0:01:22.2]}
32. c4 {[%clk 0:00:37.1]} 32... Rd4 {[%clk 0:01:18.7]} 33. b3 {[%clk 0:00:25.9]}
33... Rf4 {[%clk 0:01:15.8]} 34. Bc5 {[%clk 0:00:23]} 34... h5 {[%clk
0:01:13.1]} 35. Re6 {[%clk 0:00:22.2]} 35... h4 {[%clk 0:01:11.7]} 36. Be3
{[%clk 0:00:20.1]} 36... Rf1 {[%clk 0:01:07.6]} 37. Bd4 {[%clk 0:00:20.4]} 37...
Kf7 {[%clk 0:01:07.2]} 38. Rd6 {[%clk 0:00:20.4]} 38... Ke7 {[%clk 0:01:04.3]}
39. Bc5 {[%clk 0:00:19.3]} 39... Kf7 {[%clk 0:01:00.2]} 40. Bd4 {[%clk
0:00:18.9]} 40... Rf5 {[%clk 0:01:00]} 41. a3 {[%clk 0:00:15.5]} 41... Ke7
{[%clk 0:01:00]} 42. c5 {[%clk 0:00:15.1]} 42... Rf4 {[%clk 0:00:58.9]} 43. Be3
{[%clk 0:00:12.1]} 43... Re4 {[%clk 0:00:55.9]} 44. Bg1 {[%clk 0:00:11.5]} 44...
Re2 {[%clk 0:00:55.6]} 45. Rxc6 {[%clk 0:00:06.6]} 45... bxc6 {[%clk 0:00:56.5]}
46. b4 {[%clk 0:00:03.5]} 46... Ra2 {[%clk 0:00:55.8]} 47. Bf2 {[%clk
0:00:02.5]} 47... Rxa3 {[%clk 0:00:55.2]} 48. Be1 {[%clk 0:00:02.1]} 48... Ra2
{[%clk 0:00:54.3]} 49. Bc3 {[%clk 0:00:02.4]} 49... Ke6 {[%clk 0:00:54.5]} 50.
Kg1 {[%clk 0:00:02.2]} 50... Rc2 {[%clk 0:00:54.1]} 51. Be1 {[%clk 0:00:02]}
51... Kd5 {[%clk 0:00:51.4]} 52. Kf1 {[%clk 0:00:01.5]} 52... Kc4 {[%clk
0:00:51]} 53. Bf2 {[%clk 0:00:01.3]} 53... Rxf2+ {[%clk 0:00:50.4]} 54. Kxf2
{[%clk 0:00:02.2]} 54... Kxb4 {[%clk 0:00:51.2]} 55. Kf3 {[%clk 0:00:02.8]}
55... a5 {[%clk 0:00:51.8]} 56. g3 {[%clk 0:00:02.7]} 56... hxg3 {[%clk
0:00:50.3]} 57. Kxg3 {[%clk 0:00:02.4]} 57... a4 {[%clk 0:00:51.2]} 0-1

[Event "*** SCC Grand Prix: Titled Tuesday Blitz"]
[Site "Chess.com"]
[Date "2020.10.13"]
[Round "6"]
[White "Beca95"]
[Black "TimofeevAr"]
[Result "1/2-1/2"]
[WhiteElo "2914"]
[BlackElo "2822"]
[TimeControl "180+1"]
[EndTime "11:07:25 PDT"]
[Termination "Game drawn - insufficient material"]

1. e3 {[%clk 0:03:00.9]} 1... g6 {[%clk 0:02:58.5]} 2. c4 {[%clk 0:03:00.6]}
2... Bg7 {[%clk 0:02:58.8]} 3. Nc3 {[%clk 0:03:01.1]} 3... e6 {[%clk 0:02:59.1]}
4. d4 {[%clk 0:02:59.7]} 4... Ne7 {[%clk 0:02:59.3]} 5. Nf3 {[%clk 0:02:59.4]}
5... d5 {[%clk 0:02:59.4]} 6. b3 {[%clk 0:02:59.9]} 6... O-O {[%clk 0:02:58.8]}
7. Bb2 {[%clk 0:03:00.4]} 7... b6 {[%clk 0:02:59.2]} 8. Be2 {[%clk 0:03:00.4]}
8... Bb7 {[%clk 0:02:59.5]} 9. cxd5 {[%clk 0:02:59.2]} 9... Nxd5 {[%clk
0:02:58]} 10. O-O {[%clk 0:02:59.3]} 10... c5 {[%clk 0:02:57.1]} 11. Rc1 {[%clk
0:02:59]} 11... Nd7 {[%clk 0:02:54.6]} 12. Nxd5 {[%clk 0:02:45.1]} 12... Bxd5
{[%clk 0:02:34.6]} 13. Ba6 {[%clk 0:02:44.8]} 13... Nb8 {[%clk 0:02:27.2]} 14.
Bd3 {[%clk 0:02:24.6]} 14... Nd7 {[%clk 0:02:26.8]} 15. Ne5 {[%clk 0:01:58.2]}
15... Nxe5 {[%clk 0:02:18.5]} 16. dxe5 {[%clk 0:01:57.3]} 16... Qe7 {[%clk
0:02:18.2]} 17. Qe2 {[%clk 0:01:56.6]} 17... Rfd8 {[%clk 0:02:17.1]} 18. Rfd1
{[%clk 0:01:56.7]} 18... a5 {[%clk 0:02:11.9]} 19. Bb5 {[%clk 0:01:56.1]} 19...
Qb7 {[%clk 0:02:10.3]} 20. f3 {[%clk 0:01:51.7]} 20... Bh6 {[%clk 0:02:05.3]}
21. Kf2 {[%clk 0:01:50.9]} 21... Bf8 {[%clk 0:01:57.3]} 22. h4 {[%clk
0:01:45.1]} 22... h5 {[%clk 0:01:55.6]} 23. Rc2 {[%clk 0:01:38.4]} 23... Be7
{[%clk 0:01:50.4]} 24. Kg3 {[%clk 0:01:27.7]} 24... Bc6 {[%clk 0:01:45.9]} 25.
Rcd2 {[%clk 0:01:26.4]} 25... Rxd2 {[%clk 0:01:44.2]} 26. Rxd2 {[%clk
0:01:27.3]} 26... Rd8 {[%clk 0:01:44]} 27. Rxd8+ {[%clk 0:01:24.5]} 27... Bxd8
{[%clk 0:01:44.3]} 28. Bxc6 {[%clk 0:01:11.7]} 28... Qxc6 {[%clk 0:01:44.5]} 29.
Qd3 {[%clk 0:01:11.1]} 29... Bc7 {[%clk 0:01:37]} 30. a4 {[%clk 0:01:04.4]}
30... Qd5 {[%clk 0:01:37]} 31. Qxd5 {[%clk 0:01:04]} 31... exd5 {[%clk
0:01:37.1]} 32. f4 {[%clk 0:01:03.9]} 32... Kf8 {[%clk 0:01:34.5]} 33. Kf3
{[%clk 0:01:03.7]} 33... Ke7 {[%clk 0:01:34.9]} 34. g4 {[%clk 0:01:03.8]} 34...
Ke6 {[%clk 0:01:31.2]} 35. Bc3 {[%clk 0:01:02.5]} 35... Bd8 {[%clk 0:01:28.2]}
36. Be1 {[%clk 0:01:01.2]} 36... f5 {[%clk 0:01:24]} 37. g5 {[%clk 0:00:57.9]}
37... c4 {[%clk 0:01:19.1]} 38. bxc4 {[%clk 0:00:55.7]} 38... dxc4 {[%clk
0:01:19.4]} 39. e4 {[%clk 0:00:56.2]} 39... Be7 {[%clk 0:01:17.4]} 40. Bf2
{[%clk 0:00:55.8]} 40... c3 {[%clk 0:01:13.7]} 41. exf5+ {[%clk 0:00:52.5]}
41... Kxf5 {[%clk 0:01:13.5]} 42. Ke2 {[%clk 0:00:51.2]} 42... Bd8 {[%clk
0:01:05.8]} 43. Be3 {[%clk 0:00:47.9]} 43... Ke4 {[%clk 0:01:05.1]} 44. e6
{[%clk 0:00:41.5]} 44... c2 {[%clk 0:01:05.2]} 45. Bc1 {[%clk 0:00:35.5]} 45...
Be7 {[%clk 0:01:00.7]} 46. Kd2 {[%clk 0:00:23.6]} 46... Kxf4 {[%clk 0:01:00.4]}
47. Kxc2+ {[%clk 0:00:24.2]} 47... Ke5 {[%clk 0:00:59.6]} 48. Be3 {[%clk
0:00:24]} 48... Kxe6 {[%clk 0:00:59.5]} 49. Bxb6 {[%clk 0:00:24.1]} 49... Bb4
{[%clk 0:00:59.8]} 50. Kd3 {[%clk 0:00:24.1]} 50... Be1 {[%clk 0:00:56.8]} 51.
Ke4 {[%clk 0:00:21.4]} 51... Bxh4 {[%clk 0:00:54.7]} 52. Bxa5 {[%clk 0:00:20.8]}
52... Bxg5 {[%clk 0:00:55]} 53. Be1 {[%clk 0:00:19.3]} 53... Be7 {[%clk
0:00:50.7]} 54. a5 {[%clk 0:00:18.6]} 54... Bc5 {[%clk 0:00:51]} 55. a6 {[%clk
0:00:18.9]} 55... Kd7 {[%clk 0:00:42.7]} 56. Kf4 {[%clk 0:00:16.6]} 56... Kc6
{[%clk 0:00:40.1]} 57. Kg5 {[%clk 0:00:16.7]} 57... Kb6 {[%clk 0:00:38.5]} 58.
Kxg6 {[%clk 0:00:17]} 58... Kxa6 {[%clk 0:00:38.9]} 59. Kxh5 {[%clk 0:00:17.3]}
1/2-1/2

[Event "*** SCC Grand Prix: Titled Tuesday Blitz"]
[Site "Chess.com"]
[Date "2020.10.13"]
[Round "6"]
[White "nrvisakh"]
[Black "vaishali2001"]
[Result "0-1"]
[WhiteElo "2797"]
[BlackElo "2588"]
[TimeControl "180+1"]
[EndTime "11:07:26 PDT"]
[Termination "vaishali2001 won on time"]

1. e4 {[%clk 0:03:00.9]} 1... c5 {[%clk 0:02:59.8]} 2. Nf3 {[%clk 0:03:00.2]}
2... Nc6 {[%clk 0:02:59.9]} 3. d4 {[%clk 0:02:59.2]} 3... cxd4 {[%clk
0:03:00.8]} 4. Nxd4 {[%clk 0:03:00.1]} 4... Nf6 {[%clk 0:03:01.4]} 5. Nc3 {[%clk
0:03:00.4]} 5... d6 {[%clk 0:03:02]} 6. Bg5 {[%clk 0:02:57]} 6... e6 {[%clk
0:03:02]} 7. Qd2 {[%clk 0:02:55.9]} 7... a6 {[%clk 0:03:01.9]} 8. O-O-O {[%clk
0:02:54.4]} 8... Be7 {[%clk 0:03:02.3]} 9. f3 {[%clk 0:02:33.8]} 9... Nxd4
{[%clk 0:03:01]} 10. Qxd4 {[%clk 0:02:33]} 10... O-O {[%clk 0:02:49.1]} 11. Kb1
{[%clk 0:02:29.6]} 11... b5 {[%clk 0:02:47.8]} 12. h4 {[%clk 0:02:27.1]} 12...
Bb7 {[%clk 0:02:36.5]} 13. h5 {[%clk 0:02:17.7]} 13... h6 {[%clk 0:02:02.1]} 14.
Be3 {[%clk 0:02:12.5]} 14... Rc8 {[%clk 0:01:43.3]} 15. g4 {[%clk 0:01:41.4]}
15... d5 {[%clk 0:00:48.8]} 16. e5 {[%clk 0:01:28.6]} 16... Bc5 {[%clk
0:00:45.8]} 17. Qf4 {[%clk 0:01:24.8]} 17... Bxe3 {[%clk 0:00:43.2]} 18. Qxe3
{[%clk 0:01:24.7]} 18... Nd7 {[%clk 0:00:44.1]} 19. Bd3 {[%clk 0:01:12.3]} 19...
b4 {[%clk 0:00:27.6]} 20. Ne2 {[%clk 0:01:10.3]} 20... Qc7 {[%clk 0:00:26.4]}
21. f4 {[%clk 0:01:09.1]} 21... d4 {[%clk 0:00:25.6]} 22. Nxd4 {[%clk
0:01:09.3]} 22... Bxh1 {[%clk 0:00:25.7]} 23. Rxh1 {[%clk 0:01:10.2]} 23... Nc5
{[%clk 0:00:22.3]} 24. g5 {[%clk 0:01:09.9]} 24... Nxd3 {[%clk 0:00:21.4]} 25.
cxd3 {[%clk 0:00:54.4]} 25... Rfd8 {[%clk 0:00:19]} 26. gxh6 {[%clk 0:00:22.6]}
26... Rxd4 {[%clk 0:00:17.1]} 27. Qg1 {[%clk 0:00:23]} 27... f5 {[%clk 0:00:07]}
28. hxg7 {[%clk 0:00:07.7]} 28... Rxf4 {[%clk 0:00:05.6]} 29. h6 {[%clk
0:00:05.6]} 29... Rg4 {[%clk 0:00:06]} 30. h7+ {[%clk 0:00:03.7]} 30... Kxg7
{[%clk 0:00:05.5]} 31. Qh2 {[%clk 0:00:04]} 31... Kh8 {[%clk 0:00:05.7]} 32. Qh6
{[%clk 0:00:02.2]} 32... Qf7 {[%clk 0:00:04.8]} 33. Ka1 {[%clk 0:00:02.1]} 33...
b3 {[%clk 0:00:04.7]} 34. axb3 {[%clk 0:00:01.7]} 34... Rg6 {[%clk 0:00:04.6]}
35. Qh5 {[%clk 0:00:01.7]} 35... Rg1+ {[%clk 0:00:03.8]} 0-1